Workbook

Sheet Sheet1
A1: 人文与公共管理学院2022—2023学年国家奖学金申请者测评分排名公示
A3: 班级 | B3: 姓名 | C3: 专业成绩 班级排名 | E3: 专业成绩班级 排名赋分 | G3: 学年专业成绩班级排名赋分总分 | H3: 专业成绩测评分 | I3: 德育素质测评 奖惩分相加 | K3: 智育素质测评 奖惩分相加 | M3: 体育素质测评 奖惩分相加 | O3: 美育素质测评 奖惩分相加 | Q3: 劳育素质测评 奖惩分相加 | S3: 课外活动奖惩分相加总分 | T3: 课外活动加分测评分 | U3: 总测评分 | V3: 排位 | W3: 备注
C4: 上学期 | D4: 下学期 | E4: 上学期 | F4: 下学期 | I4: 上学期 | J4: 下学期 | K4: 上学期 | L4: 下学期 | M4: 上学期 | N4: 下学期 | O4: 上学期 | P4: 下学期 | Q4: 上学期 | R4: 下学期
A5: 公管2001 | B5: 刘婷 | C5: 1 | D5: 1 | E5: 90 | F5: 90 | G5: 180 | H5: =G5*0.7 -> 126.00 | I5: =8*0.2 -> 1.60 | J5: =4.5*0.2 -> 0.90 | K5: =8*0.6 -> 4.80 | L5: =13*0.6 -> 7.80 | M5: =2*8% -> 0.16 | N5: =2*8% -> 0.16 | O5: =60*6% -> 3.60 | P5: =38*6% -> 2.28 | Q5: =4*0.06 -> 0.24 | R5: =0*0.06 -> 0.00 | S5: =SUM(I5:R5) -> 21.54 | T5: =S5*0.3 -> 6.46 | U5: =H5+T5 -> 132.46 | V5: =RANK(U5,$U5:$U14) -> 1 | W5: 拟推荐
A6: 文学2001 | B6: 查新悦 | C6: 2 | D6: 2 | E6: 85 | F6: 85 | G6: 170 | H6: 119.00 | I6: =14*0.2 -> 2.80 | J6: =10*0.2 -> 2.00 | K6: 0.00 | L6: =15*0.6 -> 9.00 | M6: 0.00 | N6: 0.00 | O6: =40*0.06 -> 2.40 | P6: 0.00 | Q6: =20*0.06 -> 1.20 | R6: =-1*0.06 -> -0.06 | S6: =SUM(I6:R6) -> 17.34 | T6: 5.20 | U6: =H6+T6 -> 124.20 | V6: 8
A7: 文学2002 | B7: 赖雯慧 | C7: 3 | D7: 2 | E7: 80 | F7: 85 | G7: 165 | H7: 115.50 | I7: 2.20 | J7: 2.00 | K7: 0.00 | L7: 0.60 | M7: 0.00 | N7: 0.00 | O7: 1.44 | P7: 0.72 | Q7: 0.00 | R7: 0.00 | S7: =SUM(I7:R7) -> 6.96 | T7: =S7*0.3 -> 2.09 | U7: =T7+H7 -> 117.59 | V7: 10
A8: 文学2102 | B8: 王月燕 | C8: 2 | D8: 1 | E8: 85 | F8: 90 | G8: 175 | H8: 122.50 | I8: =11.5*0.2 -> 2.30 | J8: =12*0.2 -> 2.40 | K8: =4*0.6 -> 2.40 | L8: 0.00 | M8: 0.00 | N8: 0.00 | O8: =43*0.06 -> 2.58 | P8: =18*0.06 -> 1.08 | Q8: =13*0.06 -> 0.78 | R8: =13*0.06 -> 0.78 | S8: =SUM(I8:R8) -> 12.32 | T8: =S8*0.3 -> 3.70 | U8: =H8+T8 -> 126.20 | V8: 5
A9: 音学2102 | B9: 李良毅 | C9: 2 | D9: 1 | E9: 85 | F9: 90 | G9: 175 | H9: 122.50 | I9: 2.70 | J9: 2.10 | K9: 0.60 | L9: 0.00 | M9: 0.20 | N9: 0.48 | O9: 2.59 | P9: 4.03 | Q9: 0.18 | R9: 0.30 | S9: =SUM(I9:R9) -> 13.18 | T9: =S9*0.3 -> 3.96 | U9: =T9+H9 -> 126.46 | V9: 4
A10: 公管2201 | B10: 胡洁 | C10: 1 | D10: 1 | E10: 90 | F10: 90 | G10: 180 | H10: 126.00 | I10: 0.80 | J10: 0.90 | K10: 0.60 | L10: 1.20 | M10: 0.24 | N10: 0.16 | O10: 0.06 | P10: 0.96 | Q10: 0.30 | R10: 0.15 | S10: =SUM(I10:R10) -> 5.37 | T10: =S10*0.3 -> 1.61 | U10: =T10+H10 -> 127.61 | V10: 3
A11: 法学2202 | B11: 姚晓妍 | C11: 1 | D11: 1 | E11: 90 | F11: 90 | G11: 180 | H11: 126.00 | I11: 1.40 | J11: 1.70 | K11: 0.00 | L11: 1.80 | M11: 0.00 | N11: 0.00 | O11: 1.32 | P11: 2.40 | Q11: 0.18 | R11: 1.02 | S11: =SUM(I11:R11) -> 9.82 | T11: 2.95 | U11: =T11+H11 -> 128.95 | V11: 2 | W11: 拟推荐
A12: 公管2202 | B12: 李凯琦 | C12: 1 | D12: 3 | E12: 90 | F12: 80 | G12: 170 | H12: 119.00 | I12: 2.40 | J12: 2.30 | K12: 0.60 | L12: 1.20 | M12: 0.16 | N12: 0.24 | O12: 0.84 | P12: 2.50 | Q12: 0.60 | R12: 0.78 | S12: =SUM(I12:R12) -> 11.62 | T12: 3.49 | U12: =T12+H12 -> 122.49 | V12: 9
A13: 音学2201 | B13: 文晓 | C13: 1 | D13: 2 | E13: 90 | F13: 85 | G13: 175 | H13: 122.50 | I13: 2.50 | J13: 2.00 | K13: 0.60 | L13: 0.00 | M13: 0.08 | N13: 0.00 | O13: 0.36 | P13: 2.40 | Q13: 0.00 | R13: -1.11 | S13: 6.83 | T13: 2.05 | U13: =T13+H13 -> 124.55 | V13: 7
A14: 音学2202 | B14: 杜行楷 | C14: 1 | D14: 2 | E14: 90 | F14: 85 | G14: 175 | H14: 122.50 | I14: 2.40 | J14: 2.10 | K14: 0.60 | L14: 1.20 | M14: 0.00 | N14: 0.00 | O14: 0.29 | P14: 2.40 | Q14: 0.39 | R14: -0.33 | S14: 9.05 | T14: 2.71 | U14: =T14+H14 -> 125.21 | V14: 6
A15: 国家奖学金评定采用“学年专业成绩班级排名分与课外活动奖励分”加权排名办法进行测评。 申请者测评分=∑学年两次专业成绩排名加分总和×70%+课外活动加分总和×30%。
F20: 专业成绩测评分=学年专业成绩班级排名赋分总分*0.7
F22: 课外活动加分测评分=课外活动奖惩分相加总分*0.3
